fUST/lending_fUST_20260414
["ID","MTS","AMOUNT","RATE_DAILY","PERIOD"]
[420501517,1776173456763,-500.0,0.00011506,2]
[420501518,1776173456778,-506.53361185,0.00011506,2]
[420501519,1776173456798,-500.0,0.00011506,2]
[420501520,1776173456808,-500.0,0.00011506,2]
[420501521,1776173456818,-500.0,0.00011506,2]
[420501522,1776173456835,-500.0,0.00011506,2]
[420501523,1776173456852,-512.07418731,0.00011506,2]
[420501524,1776173456862,-500.0,0.00011506,2]
[420501525,1776173456873,-500.0,0.00011506,2]
[420501526,1776173456888,-500.0,0.00011506,2]
[420501527,1776173456902,-631.22692452,0.00011506,2]
[420501528,1776173456912,-500.0,0.00011506,2]
[420501529,1776173456923,-506.51713577,0.00011506,2]
[420501530,1776173456939,-500.0,0.00011506,2]
[420501531,1776173456949,-500.0,0.00011506,2]
[420501532,1776173456961,-500.0,0.00011506,2]
[420501533,1776173456970,-500.0,0.00011506,2]
[420501534,1776173457007,-500.0,0.00011506,2]
[420501535,1776173457020,-500.0,0.00011506,2]
[420501536,1776173457030,-500.0,0.00011506,2]
[420501537,1776173457050,-495.0,0.00011506,2]
[420501538,1776173457063,-720.49,0.00011506,2]
[420501539,1776173457074,-510.76596536,0.00011506,2]
[420501540,1776173457093,-500.0,0.00011506,2]
[420501541,1776173457103,-500.0,0.00011506,2]
[420501542,1776173457117,-500.0,0.00011506,2]
[420501543,1776173457133,-500.0,0.00011506,2]
[420501544,1776173457143,-500.0,0.00011506,2]
[420501545,1776173457156,-500.0,0.00011506,2]
[420501546,1776173457176,-500.0,0.00011506,2]
[420501547,1776173457188,-500.0,0.00011506,2]
[420501548,1776173457197,-777.9,0.00011506,2]
[420501549,1776173457208,-500.0,0.00011506,2]
[420501550,1776173457222,-500.0,0.00011506,2]
[420501551,1776173457234,-514.59999694,0.00011506,2]
[420501552,1776173457247,-500.0,0.00011506,2]
[420501553,1776173457257,-500.0,0.00011506,2]
[420501554,1776173457268,-500.0,0.00011506,2]
[420501555,1776173457278,-500.0,0.00011506,2]
[420501556,1776173457289,-500.0,0.00011506,2]
[420501557,1776173457299,-386.69629418,0.00011506,2]
[420501558,1776173457309,-500.0,0.00011506,2]
[420501559,1776173457327,-500.75,0.00011506,2]
[420501560,1776173457338,-500.0,0.00011506,2]
[420501561,1776173457350,-500.0,0.00011506,2]
[420501562,1776173457368,-500.0,0.00011506,2]
[420501563,1776173457378,-927.59,0.00011506,2]
[420501564,1776173457388,-500.0,0.00011506,2]
[420501565,1776173457427,-500.0,0.00011506,2]
[420501566,1776173457448,-518.60232223,0.00011506,2]
[420501567,1776173457470,-828.86,0.00011506,2]
[420501568,1776173457481,-530.79429003,0.00011506,2]
[420501569,1776173457507,-505.61155651,0.00011506,2]
[420501570,1776173457520,-500.0,0.00011506,2]
[420501571,1776173457534,-500.0,0.00011506,2]
[420501572,1776173457564,-339.01862441,0.00011506,2]
[420501573,1776173457575,-500.0,0.00011506,2]
[420501574,1776173457594,-556.82108343,0.00011506,2]
[420501575,1776173457607,-500.0,0.00011506,2]
[420501576,1776173457618,-500.0,0.00011506,2]
[420501577,1776173457646,-500.0,0.00011506,2]
[420501578,1776173457657,-500.0,0.00011506,2]
[420501579,1776173457689,-500.0,0.00011506,2]
[420501580,1776173457721,-500.0,0.00011506,2]
[420501581,1776173457731,-500.0,0.00011506,2]
[420501582,1776173457764,-500.0,0.00011506,2]
[420501583,1776173457774,-500.0,0.00011506,2]
[420501584,1776173457807,-500.0,0.00011506,2]
[420501585,1776173457817,-2186.88,0.00011506,2]
[420501586,1776173457839,-501.7275866,0.00011506,2]
[420501587,1776173457854,-500.0,0.00011506,2]
[420501588,1776173457863,-500.0,0.00011506,2]
[420501589,1776173457883,-14917.15,0.00011506,2]
[420501590,1776173457893,-500.0,0.00011506,2]
[420501591,1776173457905,-500.0,0.00011506,2]
[420501592,1776173457921,-502.72143745,0.00011506,2]
[420501593,1776173457940,-4431.3,0.00011506,2]
[420501594,1776173457950,-500.0,0.00011506,2]
[420501595,1776173457966,-500.0,0.00011506,2]
[420501596,1776173457985,-500.0,0.00011506,2]
[420501597,1776173458014,-272.26632051,0.00011506,2]
[420501598,1776173458025,-17341.21,0.00011506,2]
[420501599,1776173458034,-57126.35,0.00011506,2]
[420501600,1776173458047,-500.0,0.00011506,2]
[420501601,1776173458061,-13097.02,0.00011506,2]
[420501602,1776173458071,-505.61064153,0.00011506,2]
[420501603,1776173458081,-3441.91,0.00011506,2]
[420501604,1776173458098,-583.35,0.00011506,2]
[420501605,1776173458110,-274.64959968,0.00011506,2]
[420501606,1776173458120,-503.40271761,0.00011506,2]
[420501607,1776173458130,-30403.0,0.00011506,2]
[420501608,1776173458170,-475.03093946,0.00011506,2]
[420501609,1776173458179,-44401.7,0.00011506,2]
[420501610,1776173458189,-65357.69,0.00011506,2]
[420501611,1776173458211,-23543.85,0.00011506,2]
[420501612,1776173458220,-497.98,0.00011506,2]
[420501613,1776173458229,-500.0,0.00011506,2]
[420501614,1776173458244,-500.0,0.00011506,2]
[420501615,1776173458257,-10178.84,0.00011506,2]
[420501616,1776173458266,-577.42547277,0.00011506,2]
[420501617,1776173458278,-524.00387125,0.00011506,2]
[420501618,1776173458298,-10937.15,0.00011506,2]
[420501619,1776173458308,-510.51280925,0.00011506,2]
[420501620,1776173458318,-500.0,0.00011506,2]
[420501621,1776173458343,-17488.66,0.00011506,2]
[420501622,1776173458352,-506.74154725,0.00011506,2]
[420501623,1776173458365,-500.0,0.00011506,2]
[420501624,1776173458382,-500.0,0.00011506,2]
[420501625,1776173458394,-16417.96,0.00011506,2]
[420501626,1776173458403,-8946.3,0.00011506,2]
[420501627,1776173458421,-17199.96,0.00011506,2]
[420501628,1776173458435,-500.0,0.00011506,2]
[420501629,1776173458445,-6740.9449211,0.0001154,2]
[420501630,1776173458464,-455.6259834,0.0001166,2]
[420501631,1776173458481,-392.05582151,0.00011731,7]
[420501632,1776173458495,-254.45897328,0.0001178,2]
[420501633,1776173458622,-500.0,0.0001178,2]
[420501634,1776173458632,-348.55946815,0.0001178,2]
[420501635,1776173458642,-394.77147968,0.0001178,2]
[420501636,1776173458659,-500.0,0.0001178,2]
[420501637,1776173458672,-500.0,0.0001178,2]
[420501638,1776173458682,-510.7274011,0.0001178,2]
[420501639,1776173458698,-506.62124317,0.0001178,2]
[420501640,1776173458713,-509.81284987,0.0001178,2]
[420501641,1776173458723,-505.34918234,0.0001178,2]
[420501642,1776173458739,-500.0,0.0001178,2]
[420501643,1776173458753,-500.0,0.0001178,2]
[420501644,1776173458767,-500.0,0.0001178,2]
[420501645,1776173458778,-513.62093261,0.0001178,2]
[420501646,1776173458787,-500.0,0.0001178,2]
[420501647,1776173458805,-500.0,0.0001178,2]
[420501648,1776173458816,-500.0,0.0001178,2]
[420501649,1776173458829,-500.0,0.0001178,2]
[420501650,1776173458840,-500.0,0.0001178,2]
[420501651,1776173458858,-510.39142137,0.0001178,2]
[420501652,1776173458870,-510.52261995,0.0001178,2]
[420501653,1776173458881,-505.19963783,0.0001178,2]
[420501654,1776173458897,-510.35689493,0.0001178,2]
[420501655,1776173458914,-515.45346935,0.0001178,2]
[420501656,1776173458924,-512.2358804,0.0001178,2]
[420501657,1776173458941,-720.49,0.0001178,2]
[420501658,1776173458956,-500.0,0.0001178,2]
[420501659,1776173458968,-511.34274788,0.0001178,2]
[420501660,1776173458983,-480.0,0.0001178,2]
[420501661,1776173458995,-500.0,0.0001178,2]
[420501662,1776173459012,-500.0,0.0001178,2]
[420501663,1776173459026,-500.0,0.0001178,2]
[420501664,1776173459040,-513.9771973,0.0001178,2]
[420501665,1776173459051,-500.0,0.0001178,2]
[420501666,1776173459067,-777.9,0.0001178,2]
[420501667,1776173459081,-500.0,0.0001178,2]
[420501668,1776173459094,-515.62116997,0.0001178,2]
[420501669,1776173459111,-232.80810091,0.0001178,2]
[420501670,1776173459123,-500.0,0.0001178,2]
[420501671,1776173459132,-357.41165335,0.0001178,2]
[420501672,1776173459141,-500.0,0.0001178,2]
[420501673,1776173459162,-500.0,0.0001178,2]
[420501674,1776173459175,-500.0,0.0001178,2]
[420501675,1776173459187,-500.75,0.0001178,2]
[420501676,1776173459200,-223.86635381,0.0001178,2]
[420501677,1776173459211,-275.94928994,0.0001178,2]
[420501678,1776173459222,-500.0,0.0001178,2]
[420501679,1776173459235,-927.59,0.0001178,2]
[420501680,1776173459248,-504.42225404,0.0001178,2]
[420501681,1776173459264,-525.98408569,0.0001178,2]
[420501682,1776173459273,-828.86,0.0001178,2]
[420501683,1776173459286,-500.0,0.0001178,2]
[420501684,1776173459298,-251.17882944,0.0001178,2]
[420501685,1776173459310,-500.0,0.0001178,2]
[420501686,1776173459320,-500.0,0.0001178,2]
[420501687,1776173459335,-508.68803619,0.0001178,2]
[420501688,1776173459347,-500.0,0.0001178,2]
[420501689,1776173459359,-500.0,0.0001178,2]
[420501690,1776173459373,-500.0,0.0001178,2]
[420501691,1776173459385,-500.0,0.0001178,2]
[420501692,1776173459398,-506.08768015,0.0001178,2]
[420501693,1776173459412,-2186.88,0.0001178,2]
[420501694,1776173459427,-500.0,0.0001178,2]
[420501695,1776173459438,-14917.15,0.0001178,2]
[420501696,1776173459452,-504.33046668,0.0001178,2]
[420501697,1776173459479,-4431.3,0.0001178,2]
[420501698,1776173459489,-212.01737817,0.0001178,2]
[420501699,1776173459525,-500.0,0.0001178,2]
[420501700,1776173459540,-17341.21,0.0001178,2]
[420501701,1776173459574,-57126.35,0.0001178,2]
[420501702,1776173459600,-500.0,0.0001178,2]
[420501703,1776173459618,-13097.02,0.0001178,2]
[420501704,1776173459638,-3441.91,0.0001178,2]
[420501705,1776173459658,-583.35,0.0001178,2]
[420501706,1776173459678,-30403.0,0.0001178,2]
[420501707,1776173459694,-44401.7,0.0001178,2]
[420501708,1776173459713,-65357.69,0.0001178,2]
[420501709,1776173459726,-23543.85,0.0001178,2]
[420501710,1776173459753,-500.0,0.0001178,2]
[420501711,1776173459768,-500.0,0.0001178,2]
[420501712,1776173459781,-10178.84,0.0001178,2]
[420501713,1776173459802,-10937.15,0.0001178,2]
[420501714,1776173459817,-500.0,0.0001178,2]
[420501715,1776173459837,-17488.66,0.0001178,2]
[420501716,1776173459854,-500.0,0.0001178,2]
[420501717,1776173459877,-16417.96,0.0001178,2]
[420501718,1776173459889,-8946.3,0.0001178,2]
[420501719,1776173459907,-17199.96,0.0001178,2]
[420501720,1776173459922,-500.0,0.0001178,2]
[420501721,1776173459934,-160.25082483,0.00012,3]
[420501722,1776173459952,-78095.9588,0.00012,2]
[420501723,1776173459967,-500.0,0.00012054,2]
[420501724,1776173459980,-500.0,0.00012054,2]
[420501725,1776173460000,-500.0,0.00012054,2]
[420501726,1776173460011,-418.46893342,0.00012054,2]
[420501727,1776173460027,-500.0,0.00012054,2]
[420501728,1776173460039,-514.21040514,0.00012054,2]
[420501729,1776173460058,-515.85852053,0.00012054,2]
[420501730,1776173460074,-500.0,0.00012054,2]
[420501731,1776173460091,-500.0,0.00012054,2]
[420501732,1776173460101,-500.0,0.00012054,2]
[420501733,1776173460117,-720.49,0.00012054,2]
[420501734,1776173460133,-500.0,0.00012054,2]
[420501735,1776173460143,-500.0,0.00012054,2]
[420501736,1776173460153,-500.0,0.00012054,2]
[420501737,1776173460175,-777.9,0.00012054,2]
[420501738,1776173460185,-500.0,0.00012054,2]
[420501739,1776173460195,-533.47362387,0.00012054,2]
[420501740,1776173460227,-500.0,0.00012054,2]
[420501741,1776173460238,-500.0,0.00012054,2]
[420501742,1776173460273,-500.0,0.00012054,2]
[420501743,1776173460285,-500.75,0.00012054,2]
[420501744,1776173460300,-455.29581534,0.00012054,2]
[420501745,1776173460316,-927.59,0.00012054,2]
[420501746,1776173460327,-828.86,0.00012054,2]
[420501747,1776173460346,-612.09734754,0.00012054,2]
[420501748,1776173460361,-174.93,0.00012054,2]
[420501749,1776173460371,-500.0,0.00012054,2]
[420501750,1776173460388,-500.0,0.00012054,2]
[420501751,1776173460402,-500.0,0.00012054,2]
[420501752,1776173460412,-500.0,0.00012054,2]
[420501753,1776173460430,-2186.88,0.00012054,2]
[420501754,1776173460445,-14917.15,0.00012054,2]
[420501755,1776173460455,-4431.3,0.00012054,2]
[420501756,1776173460472,-17341.21,0.00012054,2]
[420501757,1776173460491,-57126.35,0.00012054,2]
[420501758,1776173460509,-609.60571113,0.00012054,2]
[420501759,1776173460538,-13097.02,0.00012054,2]
[420501760,1776173460552,-3441.91,0.00012054,2]
[420501761,1776173460581,-583.35,0.00012054,2]
[420501762,1776173460616,-30403.0,0.00012054,2]
[420501763,1776173460629,-44401.7,0.00012054,2]
[420501764,1776173460643,-65357.69,0.00012054,2]
[420501765,1776173460663,-23543.85,0.00012054,2]
[420501766,1776173460672,-500.0,0.00012054,2]
[420501767,1776173460686,-500.0,0.00012054,2]
[420501768,1776173460707,-10178.84,0.00012054,2]
[420501769,1776173460716,-10937.15,0.00012054,2]
[420501770,1776173460741,-500.0,0.00012054,2]
[420501771,1776173460753,-17488.66,0.00012054,2]
[420501772,1776173460763,-500.0,0.00012054,2]
[420501773,1776173460781,-16417.96,0.00012054,2]
[420501774,1776173460793,-8946.3,0.00012054,2]
[420501775,1776173460804,-17199.96,0.00012054,2]
[420501776,1776173460819,-506.03708981,0.00012054,2]
[420501777,1776173460833,-392.05582151,0.00012077,7]
[420501778,1776173460845,-645.0,0.00012107,2]
[420501779,1776173460868,-1408.0,0.00012107,2]
[420501780,1776173460891,-2208.0,0.00012107,2]
[420501781,1776173460906,-738.0,0.00012107,2]
[420501782,1776173460919,-184.0,0.00012107,2]
[420501783,1776173460942,-441.0,0.00012107,2]
[420501784,1776173460958,-548.77227298,0.00012109,7]
[420501785,1776173460986,-698.36760079,0.00012144,2]
[420501786,1776173461013,-540.53916667,0.00012152,7]
[420501787,1776173461069,-224.85413023,0.00012152,7]
[420501788,1776173461081,-233.0,0.00012267,2]
[420501789,1776173461107,-566.0,0.00012267,2]
[420501790,1776173461117,-1089.0,0.00012267,2]
[420501791,1776173461127,-715.0,0.00012267,2]
[420501792,1776173461159,-237.0,0.00012267,2]
[420501793,1776173461168,-1035.87,0.000123,2]
[420501794,1776173461181,-331.96674501,0.00012328,2]
[420501795,1776173461194,-500.0,0.00012328,2]
[420501796,1776173461211,-500.0,0.00012328,2]
[420501797,1776173461223,-500.0,0.00012328,2]
[420501798,1776173461238,-565.1,0.00012328,2]
[420501799,1776173461254,-500.0,0.00012328,2]
[420501800,1776173461267,-720.49,0.00012328,2]
[420501801,1776173461294,-500.0,0.00012328,2]
[420501802,1776173461304,-500.0,0.00012328,2]
[420501803,1776173461314,-500.0,0.00012328,2]
[420501804,1776173461328,-777.9,0.00012328,2]
[420501805,1776173461338,-500.0,0.00012328,2]
[420501806,1776173461350,-500.0,0.00012328,2]
[420501807,1776173461374,-500.0,0.00012328,2]
[420501808,1776173461383,-500.0,0.00012328,2]
[420501809,1776173461393,-500.75,0.00012328,2]
[420501810,1776173461414,-927.59,0.00012328,2]
[420501811,1776173461424,-828.86,0.00012328,2]
[420501812,1776173461433,-500.0,0.00012328,2]
[420501813,1776173461448,-500.0,0.00012328,2]
[420501814,1776173461464,-445.09891192,0.00012328,2]
[420501815,1776173461474,-500.0,0.00012328,2]
[420501816,1776173461484,-2186.88,0.00012328,2]
[420501817,1776173461502,-14917.15,0.00012328,2]
[420501818,1776173461511,-4431.3,0.00012328,2]
[420501819,1776173461521,-17341.21,0.00012328,2]
[420501820,1776173461535,-57126.35,0.00012328,2]
[420501821,1776173461550,-13097.02,0.00012328,2]
[420501822,1776173461562,-3441.91,0.00012328,2]
[420501823,1776173461582,-583.35,0.00012328,2]
[420501824,1776173461592,-30403.0,0.00012328,2]
[420501825,1776173461602,-44401.7,0.00012328,2]
[420501826,1776173461618,-65357.69,0.00012328,2]
[420501827,1776173461630,-23543.85,0.00012328,2]
[420501828,1776173461640,-500.0,0.00012328,2]
[420501829,1776173461650,-500.0,0.00012328,2]
[420501830,1776173461672,-10178.84,0.00012328,2]
[420501831,1776173461682,-10937.15,0.00012328,2]
[420501832,1776173461696,-500.0,0.00012328,2]
[420501833,1776173461714,-17488.66,0.00012328,2]
[420501834,1776173461742,-500.0,0.00012328,2]
[420501835,1776173461754,-16417.96,0.00012328,2]
[420501836,1776173461765,-8946.3,0.00012328,2]
[420501837,1776173461790,-17199.96,0.00012328,2]
[420501838,1776173461804,-942.08,0.00012329,2]
[420501839,1776173461828,-785.07,0.00012329,2]
[420501840,1776173461841,-654.22,0.00012329,2]
[420501841,1776173461854,-545.19,0.00012329,2]
[420501842,1776173461875,-454.32,0.00012329,2]
[420501843,1776173461886,-378.6,0.00012329,2]
[420501844,1776173461895,-315.5,0.00012329,2]
[420501845,1776173461926,-262.92,0.00012329,2]
[420501846,1776173461936,-219.1,0.00012329,2]
[420501847,1776173461954,-182.58,0.00012329,2]
[420501848,1776173461973,-152.15,0.00012329,2]
[420501849,1776173461982,-760.79,0.00012329,2]
[420501850,1776173462005,-392.05582151,0.00012424,7]
[420501851,1776173462019,-500.0,0.000125,2]
[420501852,1776173462042,-455.6436383,0.00012559,2]
[420501853,1776173462057,-500.0,0.00012602,2]
[420501854,1776173462066,-638.63,0.00012602,2]
[420501855,1776173462091,-500.0,0.00012602,2]
[420501856,1776173462100,-500.0,0.00012602,2]
[420501857,1776173462111,-720.49,0.00012602,2]
[420501858,1776173462134,-234.4792749,0.00012602,2]
[420501859,1776173462145,-500.0,0.00012602,2]
[420501860,1776173462167,-458.14977738,0.00012602,2]
[420501861,1776173462177,-777.9,0.00012602,2]
[420501862,1776173462195,-372.27920392,0.00012602,2]
[420501863,1776173462208,-574.22,0.00012602,2]
[420501864,1776173462218,-262.18836664,0.00012602,2]
[420501865,1776173462233,-463.32835189,0.00012602,2]
[420501866,1776173462261,-500.75,0.00012602,2]
[420501867,1776173462273,-927.59,0.00012602,2]
[420501868,1776173462291,-828.86,0.00012602,2]
[420501869,1776173462301,-500.0,0.00012602,2]
[420501870,1776173462310,-500.0,0.00012602,2]
[420501871,1776173462323,-500.0,0.00012602,2]
[420501872,1776173462347,-2186.88,0.00012602,2]
[420501873,1776173462356,-14917.15,0.00012602,2]
[420501874,1776173462368,-4431.3,0.00012602,2]
[420501875,1776173462389,-17341.21,0.00012602,2]
[420501876,1776173462399,-57126.35,0.00012602,2]
[420501877,1776173462415,-13097.02,0.00012602,2]
[420501878,1776173462429,-3441.91,0.00012602,2]
[420501879,1776173462440,-583.35,0.00012602,2]
[420501880,1776173462460,-30403.0,0.00012602,2]
[420501881,1776173462473,-44401.7,0.00012602,2]
[420501882,1776173462483,-65357.69,0.00012602,2]
[420501883,1776173462503,-23543.85,0.00012602,2]
[420501884,1776173462524,-500.0,0.00012602,2]
[420501885,1776173462536,-500.0,0.00012602,2]
[420501886,1776173462552,-10178.84,0.00012602,2]
[420501887,1776173462657,-10937.15,0.00012602,2]
[420501888,1776173462684,-158.7369489,0.00012602,2]
[420501889,1776173462695,-17488.66,0.00012602,2]
[420501890,1776173462705,-500.0,0.00012602,2]
[420501891,1776173462719,-16417.96,0.00012602,2]
[420501892,1776173462730,-8946.3,0.00012602,2]
[420501893,1776173462740,-17199.96,0.00012602,2]
[420501894,1776173462755,-299.60876736,0.00012603,2]
[420501895,1776173462765,-1334.7458757,0.00012624,2]
[420501896,1776173462778,-218.66524445,0.00012739,7]
[420501897,1776173462790,-392.05582151,0.0001277,7]
[420501898,1776173462804,-548.77227298,0.00012812,7]
[420501899,1776173462827,-181.21044585,0.00012833,7]
[420501900,1776173462837,-249.85072128,0.00012833,7]
[420501901,1776173462849,-159.47482622,0.00012833,7]
[420501902,1776173462871,-246.85645306,0.0001285,7]
[420501903,1776173462883,-299.60876736,0.00012855,7]
[420501904,1776173462893,-305.89362706,0.00012869,7]
[420501905,1776173462929,-540.53916667,0.00012869,7]
[420501906,1776173462940,-224.85413023,0.00012869,7]
[420501907,1776173462957,-286.18767611,0.00012876,2]
[420501908,1776173462982,-500.0,0.00012876,2]
[420501909,1776173462992,-500.0,0.00012876,2]
[420501910,1776173463011,-720.49,0.00012876,2]
[420501911,1776173463031,-500.0,0.00012876,2]
[420501912,1776173463059,-777.9,0.00012876,2]
[420501913,1776173463069,-500.75,0.00012876,2]
[420501914,1776173463091,-927.59,0.00012876,2]
[420501915,1776173463126,-828.86,0.00012876,2]
[420501916,1776173463156,-500.0,0.00012876,2]
[420501917,1776173463166,-500.0,0.00012876,2]
[420501918,1776173463185,-500.0,0.00012876,2]
[420501919,1776173463200,-2186.88,0.00012876,2]
[420501920,1776173463214,-14917.15,0.00012876,2]
[420501921,1776173463232,-4431.3,0.00012876,2]
[420501922,1776173463244,-17341.21,0.00012876,2]
[420501923,1776173463267,-57126.35,0.00012876,2]
[420501924,1776173463277,-13097.02,0.00012876,2]
[420501925,1776173463287,-3441.91,0.00012876,2]
[420501926,1776173463307,-583.35,0.00012876,2]
[420501927,1776173463318,-30403.0,0.00012876,2]
[420501928,1776173463328,-44401.7,0.00012876,2]
[420501929,1776173463338,-65357.69,0.00012876,2]
[420501930,1776173463358,-23543.85,0.00012876,2]
[420501931,1776173463368,-500.0,0.00012876,2]
[420501932,1776173463391,-500.0,0.00012876,2]
[420501933,1776173463401,-10178.84,0.00012876,2]
[420501934,1776173463410,-10937.15,0.00012876,2]
[420501935,1776173463428,-17488.66,0.00012876,2]
[420501936,1776173463450,-500.0,0.00012876,2]
[420501937,1776173463460,-16417.96,0.00012876,2]
[420501938,1776173463469,-8946.3,0.00012876,2]
[420501939,1776173463490,-17199.96,0.00012876,2]
[420501940,1776173463510,-11174.69979902,0.000129,2]
[420501941,1776173463519,-11174.69979897,0.000129,2]
[420501942,1776173463528,-11174.69979897,0.000129,2]
[420501943,1776173463542,-11174.69979897,0.000129,2]
[420501944,1776173463552,-11174.69979897,0.000129,2]
[420501945,1776173463562,-11174.69979897,0.000129,2]
[420501946,1776173463572,-999.29221602,0.00013094,2]
[420501947,1776173463587,-600.41133464,0.00013094,2]
[420501948,1776173463597,-37288.53358089,0.000131,2]
[420501949,1776173464327,-126.91753541,0.000131,2]
[420501950,1776173464339,-392.05582151,0.00013116,14]
[420501951,1776173464352,-49.70704712,0.0001315,2]
[420501952,1776173464741,-450.29295288,0.0001315,2]
[420501953,1776173464754,-500.0,0.0001315,2]
[420501954,1776173464781,-720.49,0.0001315,2]
[420501955,1776173464815,-500.0,0.0001315,2]
[420501956,1776173464846,-777.9,0.0001315,2]
[420501957,1776173464859,-500.75,0.0001315,2]
[420501958,1776173464879,-927.59,0.0001315,2]
[420501959,1776173464896,-828.86,0.0001315,2]
[420501960,1776173464916,-500.0,0.0001315,2]
[420501961,1776173464934,-500.0,0.0001315,2]
[420501962,1776173464954,-1242.34298677,0.0001315,2]
[420501963,1776173488938,-624.41290451,6.666e-05,2]
[420501964,1776173488989,-783.58709549,6.666e-05,2]
[420501968,1776173518239,-109.41290451,6.666e-05,2]
[420501969,1776173518276,-405.58709549,6.666e-05,2]
[420501970,1776173951345,5748.9407608,0.00027397,120]
[420501972,1776174045408,5000.0,5e-05,10]
[420501973,1776174067538,5000.0,5e-05,10]
[420501981,1776174632457,-374.1790642,3.644e-05,2]
[420502022,1776174638828,-4625.8209358,3.644e-05,2]
[420502023,1776174638840,-5000.0,3.681e-05,2]
[420502024,1776174638856,-359.21577607,3.737e-05,2]
[420502025,1776174638900,-693.0937291,3.949e-05,2]
[420502026,1776174638910,-165.806354,4.131e-05,2]
[420502027,1776174638927,-30628.46329844,4.8e-05,2]
[420502028,1776174638963,-5875.11002545,4.8e-05,2]
[420502029,1776174638990,-1092.236,4.8e-05,2]
[420502078,1776174649048,-5000.0,4.752e-05,2]
[420502079,1776174649059,-16926.9408071,4.8e-05,2]
[420502084,1776174649150,-7520.0,4.8e-05,2]
[420502100,1776174649355,-363.41,4.8e-05,2]
[420502108,1776174649467,-8686.99608826,4.8e-05,2]
[420502280,1776174807241,127.74,1.943e-05,2]
[420502281,1776174807268,38.995909,1.943e-05,2]
[420502287,1776175775217,-5000.0,2.108e-05,2]
[420502288,1776175775256,-5000.0,2.129e-05,2]
[420502289,1776175778278,-5000.0,2.118e-05,2]
[420502290,1776175778321,-300.0,2.139e-05,2]
[420502291,1776175778351,-359.65146055,2.14e-05,2]
[420502292,1776175778431,-1200.0,2.194e-05,2]
[420502293,1776175778457,-549.459308,2.308e-05,2]
[420502294,1776175778504,-166.735909,2.331e-05,2]
[420502295,1776175778557,-549.459308,2.405e-05,2]
[420502296,1776175778593,-597.0,2.413e-05,2]
[420502297,1776175778628,-549.459308,2.502e-05,2]
[420502298,1776175778655,-549.459308,2.6e-05,2]
[420502299,1776175778698,-178.77539845,2.697e-05,2]
[420502300,1776175786434,-370.68390955,2.697e-05,2]
[420502301,1776175786461,-166.735909,2.72e-05,2]
[420502302,1776175786491,-549.459308,2.794e-05,2]
[420502303,1776175786525,-250.0,2.875e-05,2]
[420502350,1776175834016,-578.83627266,3.046e-05,2]
[420502351,1776175834025,-603.97344012,3.077e-05,2]
[420502352,1776175834040,-4396.02655988,3.077e-05,2]
[420502354,1776175834054,-166.735909,3.108e-05,2]
[420502356,1776175834065,-166.735909,3.497e-05,2]
[420502358,1776175834075,-166.735909,3.885e-05,2]
[420502359,1776175834090,-424.38872345,4.14e-05,2]
[420502360,1776175834109,-8841.43928048,4.5e-05,2]
[420502361,1776175834122,-73869.78443577,4.5e-05,2]
[420502406,1776175838973,-967.62386368,4.455e-05,2]
[420502407,1776175839226,-4032.37613632,4.455e-05,2]
[420502408,1776175839237,-657792.15725871,4.5e-05,2]
[420502409,1776175839249,-959496.61902504,4.5e-05,2]
[420502410,1776175839259,-345121.31492146,4.6e-05,2]